[Event "African Games-chT 2019"]
[Site "Casablanca"]
[Date "2019.08.24"]
[Round "3.5"]
[White "Oatlhotse, Providence"]
[Black "Hamdouchi, Hicham"]
[Result "1/2-1/2"]
[ECO "A40"]
[WhiteElo "2252"]
[BlackElo "2562"]
[Annotator "ChessBase"]
[PlyCount "199"]
[EventDate "2019.08.24"]
[EventType "team-tourn"]
[EventCountry "MAR"]
[SourceTitle "playchess.com"]
[Source "ChessBase"]
[SourceQuality "1"]
[WhiteTeam "Botswana"]
[BlackTeam "Morocco"]
[WhiteTeamCountry "BOT"]
[BlackTeamCountry "MAR"]
[TimeControl "900+10"]

1. d4 {[%emt 0:00:00]} g6 {[%emt 0:00:00]} 2. c4 {[%emt 0:00:00]} Bg7 {[%emt 0:00:00]} 3. e4 {[%emt 0:00:00]} d6 {[%emt 0:00:02]} 4. Be2 {[%emt 0:00:00]} Nc6 {[%emt 0:00:31]} 5. d5 {[%emt 0:00:53]} Nd4 {[%emt 0:00:02]} 6. Nf3 {[%emt 0:00:02]} Nxf3+ {[%emt 0:01:57]} 7. Bxf3 {[%emt 0:00:01]} Nf6 {[%emt 0:00:01]} 8. Nc3 {[%emt 0:00:15]} O-O {[%emt 0:00:03]} 9. Be3 {[%emt 0:00:20]} Nd7 {[%emt 0:00:35]} 10. Qd2 {[%emt 0:00:32]} c5 {[%emt 0:00:22]} 11. Be2 {[%emt 0:00:20]} a6 {[%emt 0:00:28]} 12. h4 {[%emt 0:00:50]} b5 {[%emt 0:00:49]} 13. h5 {[%emt 0:00:08]} Nf6 {[%emt 0:00:21]} 14. Bh6 {[%emt 0:01:39]} b4 {[%emt 0:00:16]} 15. Bxg7 {[%emt 0:01:09]} Kxg7 {[%emt 0:00:02]} 16. Nd1 {[%emt 0:02:25]} Nxe4 {[%emt 0:02:46]} 17. Qf4 {[%emt 0:00:59]} Nf6 {[%emt 0:00:02]} 18. Ne3 {[%emt 0:03:15]} Rh8 {[%emt 0:00:53]} 19. h6+ {[%emt 0:00:24]} Kf8 {[%emt 0:00:10]} 20. O-O-O {[%emt 0:00:15]} Rg8 {[%emt 0:00:13]} 21. Bd3 {[%emt 0:00:13]} Nd7 {[%emt 0:01:30]} 22. Ng4 {[%emt 0:00:26]} Nb6 {[%emt 0:00:22]} 23. Rde1 {[%emt 0:00:29]} Bxg4 {[%emt 0:01:51]} 24. Qxg4 {[%emt 0:00:02]} Nd7 {[%emt 0:00:03]} 25. f4 {[%emt 0:00:05]} Nf6 {[%emt 0:00:38]} 26. Qf3 {[%emt 0:02:01]} Qd7 {[%emt 0:00:13]} 27. f5 {[%emt 0:00:07]} g5 {[%emt 0:02:31]} 28. Re2 {[%emt 0:00:07]} Ra7 {[%emt 0:01:05]} 29. Rhe1 {[%emt 0:00:28]} Ke8 {[%emt 0:00:05]} 30. g4 {[%emt 0:00:35]} Kd8 {[%emt 0:00:01]} 31. Qg3 {[%emt 0:00:08]} Re8 {[%emt 0:00:43]} 32. Bc2 {[%emt 0:00:04]} a5 {[%emt 0:00:15]} 33. Kb1 {[%emt 0:00:08]} a4 {[%emt 0:00:02]} 34. Bd3 {[%emt 0:00:09]} Qc7 {[%emt 0:00:13]} 35. Re3 {[%emt 0:00:38]} Nd7 {[%emt 0:00:38]} 36. Re4 {[%emt 0:00:07]} f6 {[%emt 0:00:09]} 37. Re6 {[%emt 0:00:13]} Ne5 {[%emt 0:00:07]} 38. Be2 {[%emt 0:00:22]} Kc8 {[%emt 0:00:13]} 39. Rd1 {[%emt 0:00:19]} Kb8 {[%emt 0:00:03]} 40. Qh2 {[%emt 0:00:05]} Rf8 {[%emt 0:00:14]} 41. Qh5 {[%emt 0:00:22]} Qa5 {[%emt 0:00:16]} 42. Qh1 {[%emt 0:00:23]} Rb7 {[%emt 0:00:10]} 43. Qe1 {[%emt 0:00:03]} Qa6 {[%emt 0:00:03]} 44. Qf1 {[%emt 0:00:06]} Qa5 {[%emt 0:00:16]} 45. Qe1 {[%emt 0:00:01]} Qd8 {[%emt 0:00:19]} 46. Qg3 {[%emt 0:00:22]} Rh8 {[%emt 0:00:10]} 47. Qh2 {[%emt 0:00:09]} Qf8 {[%emt 0:00:08]} 48. Rh1 {[%emt 0:00:06]} Qd8 {[%emt 0:00:10]} 49. Rd1 {[%emt 0:00:15]} Rg8 {[%emt 0:00:09]} 50. Rh1 {[%emt 0:00:05]} Qa5 {[%emt 0:00:12]} 51. Rd1 {[%emt 0:00:02]} Qd8 {[%emt 0:00:08]} 52. Qh3 {[%emt 0:00:17]} Qf8 {[%emt 0:00:04]} 53. Qh2 {[%emt 0:00:02]} Qd8 {[%emt 0:00:02]} 54. Qh1 {[%emt 0:00:21]} Qf8 {[%emt 0:00:06]} 55. Qh5 {[%emt 0:00:04]} Qd8 {[%emt 0:00:13]} 56. Rc1 {[%emt 0:00:30]} Rf8 {[%emt 0:00:05]} 57. Qh1 {[%emt 0:00:11]} Qa5 {[%emt 0:00:05]} 58. Rd1 {[%emt 0:00:12]} Qd8 {[%emt 0:00:03]} 59. Qh5 {[%emt 0:00:24]} Qe8 {[%emt 0:00:07]} 60. Qh3 {[%emt 0:00:08]} Qd8 {[%emt 0:00:01]} 61. Qe3 {[%emt 0:00:12]} Rg8 {[%emt 0:00:13]} 62. Rh1 {[%emt 0:00:03]} Qa5 {[%emt 0:00:18]} 63. Qd2 {[%emt 0:00:03]} Qa6 {[%emt 0:00:08]} 64. Rh5 {[%emt 0:00:15]} a3 {[%emt 0:00:19]} 65. b3 {[%emt 0:00:09]} Qb6 {[%emt 0:00:05]} 66. Qe3 {[%emt 0:00:11]} Qd8 {[%emt 0:00:04]} 67. Rh1 {[%emt 0:00:29]} Rc7 {[%emt 0:00:19]} 68. Kc2 {[%emt 0:00:18]} Qf8 {[%emt 0:00:01]} 69. Kd1 {[%emt 0:00:16]} Qd8 {[%emt 0:00:16]} 70. Ke1 {[%emt 0:00:03]} Qf8 {[%emt 0:00:07]} 71. Kf1 {[%emt 0:00:04]} Qd8 {[%emt 0:00:04]} 72. Kg2 {[%emt 0:00:03]} Qf8 {[%emt 0:00:01]} 73. Qg3 {[%emt 0:00:24]} Qd8 {[%emt 0:00:06]} 74. Qh3 {[%emt 0:00:16]} Qf8 {[%emt 0:00:02]} 75. Kf2 {[%emt 0:00:05]} Qd8 {[%emt 0:00:02]} 76. Ke3 {[%emt 0:00:07]} Qf8 {[%emt 0:00:02]} 77. Ke4 {[%emt 0:00:01]} Qd8 {[%emt 0:00:03]} 78. Qg3 {[%emt 0:00:24]} Qf8 {[%emt 0:00:08]} 79. Rh5 {[%emt 0:00:08]} Qd8 {[%emt 0:00:09]} 80. Qe3 {[%emt 0:00:16]} Nf7 {[%emt 0:00:04]} 81. Kd3 {[%emt 0:00:11]} Ne5+ {[%emt 0:00:09]} 82. Kc2 {[%emt 0:00:08]} Qf8 {[%emt 0:00:02]} 83. Qe4 {[%emt 0:00:09]} Qd8 {[%emt 0:00:03]} 84. Rh3 {[%emt 0:00:08]} Qf8 {[%emt 0:00:02]} 85. Qh1 {[%emt 0:00:08]} Qd8 {[%emt 0:00:02]} 86. Bd1 {[%emt 0:00:16]} Qf8 {[%emt 0:00:02]} 87. Re3 {[%emt 0:00:11]} Qd8 {[%emt 0:00:09]} 88. Qh2 {[%emt 0:00:10]} Qf8 {[%emt 0:00:06]} 89. Qh1 {[%emt 0:00:08]} Qd8 {[%emt 0:00:03]} 90. Qh5 {[%emt 0:00:10]} Qf8 {[%emt 0:00:13]} 91. Be2 {[%emt 0:00:08]} Rd7 {[%emt 0:00:09]} 92. Qh2 {[%emt 0:00:08]} Rc7 {[%emt 0:00:02]} 93. Kd2 {[%emt 0:00:08]} Nf7 {[%emt 0:00:09]} 94. Rh3 {[%emt 0:00:14]} Ne5 {[%emt 0:00:02]} 95. Qg1 {[%emt 0:00:13]} Qd8 {[%emt 0:00:05]} 96. Qh2 {[%emt 0:00:07]} Qf8 {[%emt 0:00:03]} 97. Kd1 {[%emt 0:00:08]} Qd8 {[%emt 0:00:01]} 98. Rh5 {[%emt 0:00:15]} Qf8 {[%emt 0:00:07]} 99. Qh1 {[%emt 0:00:06]} Qd8 {[%emt 0:00:01]} 100. Qh2 {[%emt 0:00:11]} 1/2-1/2

[Event "African Games-chT 2019"]
[Site "Casablanca"]
[Date "2019.08.24"]
[Round "3.6"]
[White "Tissir, Mohamed"]
[Black "Khetho, Phemelo"]
[Result "1-0"]
[ECO "C49"]
[WhiteElo "2379"]
[BlackElo "2178"]
[Annotator "NA"]
[PlyCount "100"]
[EventDate "2019.08.24"]
[EventType "team-tourn"]
[EventCountry "MAR"]
[SourceTitle "playchess.com"]
[Source "ChessBase"]
[SourceQuality "1"]
[WhiteTeam "Morocco"]
[BlackTeam "Botswana"]
[WhiteTeamCountry "MAR"]
[BlackTeamCountry "BOT"]
[TimeControl "900+10"]

1. e4 {[%emt 0:00:04]} e5 {[%emt 0:00:00]} 2. Nf3 {[%emt 0:00:02]} Nf6 {[%emt 0:00:00]} 3. Nc3 {[%emt 0:00:11]} Nc6 {[%emt 0:00:00]} 4. Bb5 {[%emt 0:00:10]} Bb4 {[%emt 0:00:02]} 5. O-O {[%emt 0:00:25]} O-O {[%emt 0:00:03]} 6. d3 {[%emt 0:00:17]} Bxc3 {[%emt 0:00:18]} 7. bxc3 {[%emt 0:00:03]} d6 {[%emt 0:00:04]} 8. Re1 {[%emt 0:00:06]} a6 {[%emt 0:00:42]} 9. Bxc6 {[%emt 0:01:15]} bxc6 {[%emt 0:00:02]} 10. d4 {[%emt 0:00:01]} Qe7 {[%emt 0:01:28]} 11. Bg5 {[%emt 0:00:23]} h6 {[%emt 0:00:18]} 12. Bh4 {[%emt 0:00:34]} Bg4 {[%emt 0:00:13]} 13. Qd3 {[%emt 0:00:00]} Bxf3 {[%emt 0:01:43]} 14. Qxf3 {[%emt 0:00:04]} g5 {[%emt 0:00:08]} 15. Bg3 {[%emt 0:00:08]} Nd7 {[%emt 0:00:39]} 16. Rab1 {[%emt 0:00:20]} Rab8 {[%emt 0:00:13]} 17. Rb3 {[%emt 0:00:08]} Rxb3 {[%emt 0:00:30]} 18. axb3 {[%emt 0:00:02]} c5 {[%emt 0:00:23]} 19. Qd3 {[%emt 0:00:22]} Ra8 {[%emt 0:00:51]} 20. f3 {[%emt 0:00:26]} a5 {[%emt 0:01:37]} 21. Ra1 {[%emt 0:00:09]} cxd4 {[%emt 0:00:34]} 22. cxd4 {[%emt 0:00:01]} exd4 {[%emt 0:00:16]} 23. Qxd4 {[%emt 0:00:01]} Qf6 {[%emt 0:00:05]} 24. Qxf6 {[%emt 0:00:17]} Nxf6 {[%emt 0:00:01]} 25. Be1 {[%emt 0:00:00]} Kf8 {[%emt 0:01:19]} 26. Rxa5 {[%emt 0:00:08]} Rc8 {[%emt 0:00:07]} 27. h4 {[%emt 0:00:08]} Nh7 {[%emt 0:00:17]} 28. Bd2 {[%emt 0:00:28]} f6 {[%emt 0:00:02]} 29. Ra7 {[%emt 0:00:33]} Ke7 {[%emt 0:00:28]} 30. Kf2 {[%emt 0:00:32]} Nf8 {[%emt 0:00:10]} 31. hxg5 {[%emt 0:00:22]} hxg5 {[%emt 0:00:01]} 32. Ra1 {[%emt 0:00:03]} Ng6 {[%emt 0:00:12]} 33. Rh1 {[%emt 0:00:05]} Ke6 {[%emt 0:01:57]} 34. Rh6 {[%emt 0:00:12]} Rg8 {[%emt 0:00:17]} 35. Rh7 {[%emt 0:00:07]} Ne7 {[%emt 0:00:35]} 36. Ke3 {[%emt 0:01:49]} Ra8 {[%emt 0:00:29]} 37. g3 {[%emt 0:00:22]} c5 {[%emt 0:00:44]} 38. f4 {[%emt 0:01:07]} gxf4+ {[%emt 0:00:18]} 39. gxf4 {[%emt 0:00:01]} f5 {[%emt 0:00:06]} 40. Rh6+ {[%emt 0:00:21]} Kd7 {[%emt 0:00:20]} 41. e5 {[%emt 0:00:01]} d5 {[%emt 0:02:18]} 42. Be1 {[%emt 0:00:07]} Ra2 {[%emt 0:00:17]} 43. Kd2 {[%emt 0:00:14]} d4 {[%emt 0:00:20]} 44. Bh4 {[%emt 0:00:01]} Nc6 {[%emt 0:00:02]} 45. e6+ {[%emt 0:01:01]} Kc7 {[%emt 0:00:16]} 46. Rh8 {[%emt 0:01:03]} Kd6 {[%emt 0:00:38]} 47. e7 {[%emt 0:00:02]} Nxe7 {[%emt 0:00:16]} 48. Rh6+ {[%emt 0:00:02]} Kd5 {[%emt 0:01:07]} 49. Bxe7 {[%emt 0:00:03]} Ke4 {[%emt 0:00:09]} 50. Bxc5 {[%emt 0:00:31]} Kd5 1-0

[Event "African Games-chT 2019"]
[Site "Casablanca"]
[Date "2019.08.24"]
[Round "3.7"]
[White "Francis, Onkemetse"]
[Black "Mayar ElIdrissi, Firdaous"]
[Result "1-0"]
[ECO "B23"]
[WhiteElo "1792"]
[BlackElo "1760"]
[Annotator "NA"]
[PlyCount "95"]
[EventDate "2019.08.24"]
[EventType "team-tourn"]
[EventCountry "MAR"]
[SourceTitle "playchess.com"]
[Source "ChessBase"]
[SourceQuality "1"]
[WhiteTeam "Botswana"]
[BlackTeam "Morocco"]
[WhiteTeamCountry "BOT"]
[BlackTeamCountry "MAR"]
[TimeControl "900+10"]

1. e4 {[%emt 0:00:00]} c5 {[%emt 0:00:00]} 2. Nc3 {[%emt 0:00:00]} d6 {[%emt 0:00:00]} 3. g3 {[%emt 0:00:01]} Nf6 {[%emt 0:00:00]} 4. Bg2 {[%emt 0:00:01]} e6 {[%emt 0:00:00]} 5. Nge2 {[%emt 0:00:05]} Be7 {[%emt 0:00:00]} 6. d3 {[%emt 0:00:01]} Nc6 {[%emt 0:00:00]} 7. O-O {[%emt 0:00:02]} a6 {[%emt 0:00:00]} 8. a4 {[%emt 0:00:02]} O-O {[%emt 0:00:00]} 9. f4 {[%emt 0:00:05]} Qc7 {[%emt 0:00:11]} 10. h3 {[%emt 0:00:03]} Bd7 {[%emt 0:00:02]} 11. Kh2 {[%emt 0:00:02]} Rfe8 {[%emt 0:00:19]} 12. g4 {[%emt 0:00:02]} Kh8 {[%emt 0:01:16]} 13. Ng3 {[%emt 0:00:04]} Nd4 {[%emt 0:00:15]} 14. Nce2 {[%emt 0:00:46]} Rac8 {[%emt 0:00:15]} 15. c3 {[%emt 0:00:02]} Nc6 {[%emt 0:00:13]} 16. Be3 {[%emt 0:01:30]} b5 {[%emt 0:00:03]} 17. axb5 {[%emt 0:00:07]} axb5 {[%emt 0:00:00]} 18. Qd2 {[%emt 0:01:18]} Ra8 {[%emt 0:00:06]} 19. d4 {[%emt 0:00:34]} Ra5 {[%emt 0:02:10]} 20. Rxa5 {[%emt 0:01:17]} Nxa5 {[%emt 0:00:33]} 21. g5 {[%emt 0:02:59]} Ng8 {[%emt 0:00:39]} 22. Qc2 {[%emt 0:01:50]} c4 {[%emt 0:02:29]} 23. Bc1 {[%emt 0:02:08]} Nb3 {[%emt 0:00:38]} 24. Be3 {[%emt 0:00:03]} Ra8 {[%emt 0:02:20]} 25. Nc1 {[%emt 0:00:15]} Nxc1 {[%emt 0:00:34]} 26. Qxc1 {[%emt 0:00:13]} Ra2 {[%emt 0:00:10]} 27. f5 {[%emt 0:00:41]} e5 {[%emt 0:02:59]} 28. d5 {[%emt 0:01:20]} f6 {[%emt 0:00:34]} 29. g6 {[%emt 0:00:52]} hxg6 {[%emt 0:01:05]} 30. Qb1 {[%emt 0:01:06]} Qa5 {[%emt 0:00:15]} 31. fxg6 {[%emt 0:00:16]} Be8 32. Qd1 {[%emt 0:00:36]} Bxg6 {[%emt 0:01:19]} 33. Qg4 {[%emt 0:00:04]} Bh7 {[%emt 0:00:43]} 34. Nf5 {[%emt 0:01:08]} Bf8 {[%emt 0:00:24]} 35. Bc1 {[%emt 0:00:02]} Qd8 {[%emt 0:00:44]} 36. Rf3 {[%emt 0:00:33]} g6 {[%emt 0:00:13]} 37. Nh4 {[%emt 0:00:03]} g5 {[%emt 0:00:25]} 38. Nf5 {[%emt 0:00:13]} Nh6 {[%emt 0:00:11]} 39. Nxh6 {[%emt 0:00:05]} Bxh6 40. Qh5 {[%emt 0:00:17]} Bg7 {[%emt 0:00:19]} 41. h4 {[%emt 0:00:09]} Ra8 {[%emt 0:00:06]} 42. Bh3 {[%emt 0:00:07]} Qe8 {[%emt 0:00:04]} 43. Qg4 {[%emt 0:00:11]} Qg6 {[%emt 0:00:16]} 44. hxg5 {[%emt 0:00:07]} fxg5 45. Bxg5 {[%emt 0:00:12]} Qxe4 {[%emt 0:00:18]} 46. Qxe4 {[%emt 0:00:25]} Bxe4 {[%emt 0:00:01]} 47. Rf7 {[%emt 0:00:04]} Bxd5 {[%emt 0:00:20]} 48. Rd7 1-0

[Event "African Games-chT 2019"]
[Site "Casablanca"]
[Date "2019.08.24"]
[Round "3.8"]
[White "Rania, Sbai"]
[Black "Gabatshwarwe Refilwe"]
[Result "1-0"]
[ECO "D45"]
[WhiteElo "1853"]
[BlackElo "1649"]
[Annotator "NA"]
[PlyCount "92"]
[EventDate "2019.08.24"]
[EventType "team-tourn"]
[EventCountry "MAR"]
[SourceTitle "playchess.com"]
[Source "ChessBase"]
[SourceQuality "1"]
[WhiteTeam "Morocco"]
[BlackTeam "Botswana"]
[WhiteTeamCountry "MAR"]
[BlackTeamCountry "BOT"]
[TimeControl "900+10"]

1. d4 {[%emt 0:00:00]} d5 {[%emt 0:00:00]} 2. c4 {[%emt 0:00:02]} c6 {[%emt 0:00:00]} 3. Nc3 {[%emt 0:00:04]} Nf6 {[%emt 0:00:01]} 4. Nf3 {[%emt 0:00:08]} e6 {[%emt 0:00:03]} 5. e3 {[%emt 0:00:27]} Nbd7 {[%emt 0:00:04]} 6. Qc2 {[%emt 0:00:10]} Be7 {[%emt 0:00:08]} 7. a3 {[%emt 0:00:50]} a6 {[%emt 0:00:49]} 8. Bd3 {[%emt 0:00:33]} dxc4 {[%emt 0:00:06]} 9. Bxc4 {[%emt 0:00:01]} b5 {[%emt 0:00:03]} 10. Ba2 {[%emt 0:01:08]} c5 {[%emt 0:00:41]} 11. O-O {[%emt 0:01:15]} Bb7 {[%emt 0:00:41]} 12. Qe2 {[%emt 0:01:57]} O-O {[%emt 0:00:45]} 13. Rd1 {[%emt 0:01:37]} Qc7 {[%emt 0:01:34]} 14. e4 {[%emt 0:02:01]} cxd4 {[%emt 0:01:39]} 15. Nxd4 {[%emt 0:00:04]} Nc5 {[%emt 0:01:38]} 16. e5 {[%emt 0:01:41]} Nd5 {[%emt 0:01:50]} 17. Nxd5 {[%emt 0:00:39]} Bxd5 {[%emt 0:00:17]} 18. Bxd5 {[%emt 0:00:17]} exd5 {[%emt 0:00:02]} 19. Bf4 {[%emt 0:00:46]} Ne6 {[%emt 0:01:00]} 20. Bg3 {[%emt 0:00:36]} Rfd8 {[%emt 0:00:59]} 21. Nf5 {[%emt 0:00:41]} Bf8 {[%emt 0:00:21]} 22. Rac1 {[%emt 0:00:04]} Qb6 {[%emt 0:01:49]} 23. Qg4 {[%emt 0:00:45]} g6 {[%emt 0:01:24]} 24. Nd6 {[%emt 0:01:31]} Bxd6 {[%emt 0:00:38]} 25. exd6 {[%emt 0:00:01]} d4 {[%emt 0:01:44]} 26. Be5 {[%emt 0:00:25]} f5 {[%emt 0:00:39]} 27. Qh4 {[%emt 0:00:15]} Qb7 {[%emt 0:00:21]} 28. Qf6 {[%emt 0:00:19]} Qg7 {[%emt 0:00:08]} 29. Qxe6+ {[%emt 0:00:02]} Qf7 {[%emt 0:00:01]} 30. Qxf7+ {[%emt 0:00:09]} Kxf7 {[%emt 0:00:02]} 31. Rxd4 {[%emt 0:00:10]} Rac8 {[%emt 0:00:01]} 32. Re1 {[%emt 0:00:35]} Re8 {[%emt 0:00:15]} 33. h3 {[%emt 0:00:03]} Rcd8 {[%emt 0:00:05]} 34. f4 {[%emt 0:00:17]} Rd7 {[%emt 0:00:16]} 35. Rc1 {[%emt 0:00:24]} Ke6 {[%emt 0:00:25]} 36. Rc6 {[%emt 0:00:09]} g5 {[%emt 0:00:12]} 37. Rxa6 {[%emt 0:00:09]} Rc8 {[%emt 0:00:05]} 38. Rd2 {[%emt 0:00:13]} Rc4 {[%emt 0:00:18]} 39. Rf2 {[%emt 0:00:34]} Re4 {[%emt 0:00:13]} 40. Rb6 {[%emt 0:00:18]} b4 {[%emt 0:00:01]} 41. Rxb4 {[%emt 0:00:04]} Re1+ {[%emt 0:00:03]} 42. Kh2 {[%emt 0:00:01]} gxf4 {[%emt 0:00:07]} 43. Bxf4 {[%emt 0:00:04]} Kf6 {[%emt 0:00:17]} 44. Rc4 {[%emt 0:00:06]} Ke6 {[%emt 0:00:23]} 45. Rc7 {[%emt 0:00:07]} Rd1 {[%emt 0:00:22]} 46. Re2+ {[%emt 0:00:03]} Kd5 1-0

[Event "African Games-chT 2019"]
[Site "Casablanca"]
[Date "2019.08.24"]
[Round "3.9"]
[White "Zaibi, Amir"]
[Black "Gohil, Mehul"]
[Result "1/2-1/2"]
[ECO "E06"]
[WhiteElo "2367"]
[BlackElo "2076"]
[Annotator "NA"]
[PlyCount "35"]
[EventDate "2019.08.24"]
[EventType "team-tourn"]
[EventCountry "MAR"]
[SourceTitle "playchess.com"]
[Source "ChessBase"]
[SourceQuality "1"]
[WhiteTeam "Tunisia"]
[BlackTeam "Kenya"]
[WhiteTeamCountry "TUN"]
[BlackTeamCountry "KEN"]
[TimeControl "900+10"]

1. d4 {[%emt 0:00:00]} d5 {[%emt 0:00:00]} 2. Nf3 {[%emt 0:00:00]} Nf6 {[%emt 0:00:00]} 3. c4 {[%emt 0:00:00]} e6 {[%emt 0:00:00]} 4. g3 {[%emt 0:00:00]} Be7 {[%emt 0:00:03]} 5. Bg2 {[%emt 0:00:01]} O-O {[%emt 0:00:03]} 6. O-O {[%emt 0:00:03]} dxc4 {[%emt 0:00:02]} 7. Qc2 {[%emt 0:00:03]} b6 {[%emt 0:00:02]} 8. Ne5 {[%emt 0:00:50]} Nd5 {[%emt 0:00:03]} 9. Qxc4 {[%emt 0:01:06]} Ba6 {[%emt 0:03:43]} 10. Qc2 {[%emt 0:00:03]} c5 {[%emt 0:00:41]} 11. dxc5 {[%emt 0:00:18]} Bxc5 {[%emt 0:01:06]} 12. Nc3 {[%emt 0:00:16]} Nd7 {[%emt 0:02:06]} 13. Nxd7 {[%emt 0:02:23]} Qxd7 {[%emt 0:00:03]} 14. Rd1 {[%emt 0:00:01]} Rac8 {[%emt 0:02:27]} 15. Bf4 {[%emt 0:03:11]} Qe7 {[%emt 0:01:43]} 16. Bxd5 {[%emt 0:03:35]} exd5 {[%emt 0:00:03]} 17. Nxd5 {[%emt 0:00:02]} Qxe2 {[%emt 0:01:44]} 18. Qxe2 {[%emt 0:00:34]} 1/2-1/2

[Event "African Games-chT 2019"]
[Site "Casablanca"]
[Date "2019.08.24"]
[Round "3.10"]
[White "Sang, Ricky"]
[Black "Boudriga, Mohamed Ali"]
[Result "0-1"]
[ECO "B28"]
[WhiteElo "1971"]
[BlackElo "2325"]
[Annotator "NA"]
[PlyCount "90"]
[EventDate "2019.08.24"]
[EventType "team-tourn"]
[EventCountry "MAR"]
[SourceTitle "playchess.com"]
[Source "ChessBase"]
[SourceQuality "1"]
[WhiteTeam "Kenya"]
[BlackTeam "Tunisia"]
[WhiteTeamCountry "KEN"]
[BlackTeamCountry "TUN"]
[TimeControl "900+10"]

1. e4 {[%emt 0:00:00]} c5 {[%emt 0:00:02]} 2. Nf3 {[%emt 0:00:00]} a6 {[%emt 0:00:19]} 3. d4 {[%emt 0:00:02]} cxd4 {[%emt 0:00:03]} 4. Nxd4 {[%emt 0:00:01]} Nf6 {[%emt 0:00:09]} 5. Nc3 {[%emt 0:00:06]} e5 {[%emt 0:00:06]} 6. Nb3 {[%emt 0:00:25]} Bb4 {[%emt 0:00:05]} 7. Bd3 {[%emt 0:00:44]} d5 {[%emt 0:00:05]} 8. exd5 {[%emt 0:00:52]} Nxd5 {[%emt 0:01:46]} 9. Bd2 {[%emt 0:00:18]} Nxc3 {[%emt 0:00:07]} 10. bxc3 {[%emt 0:00:13]} Bd6 {[%emt 0:00:05]} 11. O-O {[%emt 0:00:28]} O-O {[%emt 0:00:03]} 12. c4 {[%emt 0:00:55]} Nc6 {[%emt 0:00:10]} 13. c5 {[%emt 0:00:41]} Bc7 {[%emt 0:00:35]} 14. Qh5 {[%emt 0:01:08]} f5 {[%emt 0:02:58]} 15. Rad1 {[%emt 0:01:07]} Be6 {[%emt 0:00:54]} 16. Bc3 {[%emt 0:01:55]} Qe8 {[%emt 0:00:23]} 17. Qe2 {[%emt 0:01:11]} Qf7 {[%emt 0:00:08]} 18. Nd2 {[%emt 0:00:38]} Bxa2 {[%emt 0:02:40]} 19. Bc4 {[%emt 0:00:14]} Bxc4 {[%emt 0:00:04]} 20. Nxc4 {[%emt 0:00:03]} Rfe8 {[%emt 0:00:37]} 21. Nd6 {[%emt 0:00:49]} Bxd6 {[%emt 0:00:03]} 22. Rxd6 {[%emt 0:00:22]} a5 {[%emt 0:00:10]} 23. Rfd1 {[%emt 0:00:13]} a4 {[%emt 0:00:05]} 24. Qb5 {[%emt 0:01:01]} Re7 {[%emt 0:00:55]} 25. Rxc6 {[%emt 0:02:44]} bxc6 {[%emt 0:00:22]} 26. Qxc6 {[%emt 0:00:02]} Qe8 {[%emt 0:01:24]} 27. Qd5+ {[%emt 0:01:07]} Kh8 {[%emt 0:00:06]} 28. Bb4 {[%emt 0:00:23]} a3 {[%emt 0:00:15]} 29. c6 {[%emt 0:00:35]} a2 {[%emt 0:00:44]} 30. Ra1 {[%emt 0:00:08]} Rc7 {[%emt 0:00:17]} 31. Rxa2 {[%emt 0:00:22]} Rxa2 {[%emt 0:00:02]} 32. Qxa2 {[%emt 0:00:02]} Qxc6 {[%emt 0:00:26]} 33. c3 {[%emt 0:00:08]} h6 {[%emt 0:00:08]} 34. h3 {[%emt 0:00:04]} f4 {[%emt 0:00:45]} 35. Qd2 {[%emt 0:00:16]} Rd7 {[%emt 0:00:06]} 36. Qe2 {[%emt 0:00:07]} e4 {[%emt 0:00:04]} 37. Qh5 {[%emt 0:00:21]} Qe6 {[%emt 0:00:12]} 38. Qc5 {[%emt 0:00:35]} e3 {[%emt 0:00:25]} 39. fxe3 {[%emt 0:00:32]} fxe3 {[%emt 0:00:22]} 40. c4 {[%emt 0:00:32]} Rd1+ {[%emt 0:00:16]} 41. Kh2 {[%emt 0:00:04]} e2 {[%emt 0:00:04]} 42. Qf8+ {[%emt 0:00:06]} Kh7 {[%emt 0:00:03]} 43. Qf2 {[%emt 0:00:06]} e1=Q {[%emt 0:00:14]} 44. Bxe1 {[%emt 0:00:02]} Rxe1 {[%emt 0:00:02]} 45. Qc2+ {[%emt 0:00:24]} Qe4 {[%emt 0:00:06]} 0-1